{"text_format":"1","workbook":"xlsx","n_sheets":1,"sheets":["main_Init"],"not_rendered":{"charts":0,"images":0,"macros":1,"external_links":0,"defined_names":1,"comments":0,"pivot_tables":0},"unopened":[],"bounds":{"document_bytes":16777216,"sheet_cells":100000,"rows_first":2000,"rows_last":500,"rows_between":2000,"halvings":0,"cell_chars":16384,"cell_head_chars":4096},"cells_cut":0,"cells_raw":0,"read":"whole","date_system":"1900"}

{"sheet":"main_Init","index":0,"n_rows":35,"n_cols":22,"rows_kept":35,"cut":false,"hidden":false,"merged":[]}
[null,"Name","AC","HP","Initiative Bonus","Total Initiative","Rolloff1","Rolloff2","X","PC Name","AC","HP","Initiative Bonus","Total Initiative","X","Name","Creature/Type","AC","HP","Initiative Bonus","Total Initiative","X"]
[null,"Jasper, the Quick",16,16,5,25,{"$f":"RANDBETWEEN(1,20)","v":17},{"$f":"RANDBETWEEN(1,20)","v":2},"t","Jasper, the Quick",16,16,5,{"$f":"IF(ISBLANK(J2),\"\",RANDBETWEEN(1,20)+M2)","v":11},{"$f":"IF(ISBLANK(J2),\"\",\"t\")","v":"t"},"Graggle","Goblin",16,6,6,{"$f":"IF(ISBLANK(P2),\"\",RANDBETWEEN(1,20)+T2)","v":12},{"$f":"IF(ISBLANK(P2),\"\",\"o\")","v":"o"}]
[null,"Graggle",16,6,6,23,{"$f":"RANDBETWEEN(1,20)","v":8},{"$f":"RANDBETWEEN(1,20)","v":3},"o","Willow Warmbranch",12,15,2,{"$f":"IF(ISBLANK(J3),\"\",RANDBETWEEN(1,20)+M3)","v":13},"t","Thingut","Goblin",16,6,6,{"$f":"IF(ISBLANK(P3),\"\",RANDBETWEEN(1,20)+T3)","v":26},{"$f":"IF(ISBLANK(P3),\"\",\"o\")","v":"o"}]
[null,"Yellowtooth Junknabber",16,6,6,21,{"$f":"RANDBETWEEN(1,20)","v":13},{"$f":"RANDBETWEEN(1,20)","v":13},"o","Sir Perchivald, Baron of Dartmouth",18,24,0,16,"t","Whiskers","Goblin Dog",13,9,2,7,"o"]
[null,"Sawyer",15,9,5,20,{"$f":"RANDBETWEEN(1,20)","v":10},{"$f":"RANDBETWEEN(1,20)","v":2},"o","Inkwell",14,20,-1,{"$f":"IF(ISBLANK(J5),\"\",RANDBETWEEN(1,20)+M5)","v":12},{"$f":"IF(ISBLANK(J5),\"\",\"t\")","v":"t"},"Sawyer","Human Wizard",15,9,5,22,"o"]
[null,"Willow Warmbranch",12,15,2,17,{"$f":"RANDBETWEEN(1,20)","v":12},{"$f":"RANDBETWEEN(1,20)","v":18},"t","Bosmer, the Enlightened",12,22,-2,6,"t","Yellowtooth Junknabber","Goblin",16,6,6,16,"o"]
[null,"Bosmer, the Enlightened",12,22,-2,17,{"$f":"RANDBETWEEN(1,20)","v":19},{"$f":"RANDBETWEEN(1,20)","v":13},"t",null,null,null,null,null,"",null,null,null,null,null,"",""]
[null,"Whiskers",13,9,2,16,{"$f":"RANDBETWEEN(1,20)","v":15},{"$f":"RANDBETWEEN(1,20)","v":9},"o",null,null,null,null,null,"",null,null,null,null,null,"",""]
[null,"Thingut",16,6,6,15,{"$f":"RANDBETWEEN(1,20)","v":10},{"$f":"RANDBETWEEN(1,20)","v":13},"o",null,null,null,null,null,"",null,null,null,null,null,"",""]
[null,"Sir Perchivald, Baron of Dartmouth",18,24,0,14,{"$f":"RANDBETWEEN(1,20)","v":6},{"$f":"RANDBETWEEN(1,20)","v":11},"t",null,null,null,null,null,"",null,null,null,null,null,"",""]
[null,"Inkwell",14,20,-1,0,{"$f":"RANDBETWEEN(1,20)","v":1},{"$f":"RANDBETWEEN(1,20)","v":4},"t",null,null,null,null,null,"",null,null,null,null,null,"",""]
[null,null,null,null,null,null,{"$f":"RANDBETWEEN(1,20)","v":9},{"$f":"RANDBETWEEN(1,20)","v":12},null,null,null,null,null,null,"",null,null,null,null,null,"",""]
[null,null,null,null,null,null,{"$f":"RANDBETWEEN(1,20)","v":4},{"$f":"RANDBETWEEN(1,20)","v":10},null,null,null,null,null,null,"",null,null,null,null,null,"",""]
[null,null,null,null,null,null,{"$f":"RANDBETWEEN(1,20)","v":9},{"$f":"RANDBETWEEN(1,20)","v":2},null,null,null,null,null,null,"",null,null,null,null,null,"",""]
[-1,null,null,null,null,null,{"$f":"RANDBETWEEN(1,20)","v":20},{"$f":"RANDBETWEEN(1,20)","v":19},null,null,null,null,null,null,"",null,null,null,null,null,"",""]
["Round Tracker",null,null,null,null,null,{"$f":"RANDBETWEEN(1,20)","v":17},{"$f":"RANDBETWEEN(1,20)","v":8},null,null,null,null,null,null,"",null,null,null,null,null,"",""]
[0,null,null,null,null,null,{"$f":"RANDBETWEEN(1,20)","v":14},{"$f":"RANDBETWEEN(1,20)","v":8},null,null,null,null,null,null,"",null,null,null,null,null,"",""]
[null,null,null,null,null,null,{"$f":"RANDBETWEEN(1,20)","v":10},{"$f":"RANDBETWEEN(1,20)","v":19},null,null,null,null,null,"","",null,null,null,null,null,"",""]
[null,null,null,null,null,null,{"$f":"RANDBETWEEN(1,20)","v":13},{"$f":"RANDBETWEEN(1,20)","v":11},null,null,null,null,null,"","",null,null,null,null,null,"",""]
[null,null,null,null,null,null,{"$f":"RANDBETWEEN(1,20)","v":16},{"$f":"RANDBETWEEN(1,20)","v":7},null,null,null,null,null,"","",null,null,null,null,null,"",""]
[null,null,null,null,null,null,{"$f":"RANDBETWEEN(1,20)","v":18},{"$f":"RANDBETWEEN(1,20)","v":17},null,null,null,null,null,"","",null,null,null,null,null,"",""]
[null,null,null,null,null,null,{"$f":"RANDBETWEEN(1,20)","v":20},{"$f":"RANDBETWEEN(1,20)","v":17},null,null,null,null,null,"","",null,null,null,null,null,"",""]
[null,null,null,null,null,null,{"$f":"RANDBETWEEN(1,20)","v":4},{"$f":"RANDBETWEEN(1,20)","v":5},null,null,null,null,null,"","",null,null,null,null,null,"",""]
[null,null,null,null,null,null,{"$f":"RANDBETWEEN(1,20)","v":13},{"$f":"RANDBETWEEN(1,20)","v":2},null,null,null,null,null,"","",null,null,null,null,null,"",""]
[null,null,null,null,null,null,{"$f":"RANDBETWEEN(1,20)","v":3},{"$f":"RANDBETWEEN(1,20)","v":7},null,null,null,null,null,"","",null,null,null,null,null,"",""]
[null,null,null,null,null,null,{"$f":"RANDBETWEEN(1,20)","v":2},{"$f":"RANDBETWEEN(1,20)","v":10},null,null,null,null,null,"","",null,null,null,null,null,"",""]
[null,null,null,null,null,null,{"$f":"RANDBETWEEN(1,20)","v":16},{"$f":"RANDBETWEEN(1,20)","v":14},null,null,null,null,null,"","",null,null,null,null,null,"",""]
[null,null,null,null,null,null,{"$f":"RANDBETWEEN(1,20)","v":16},{"$f":"RANDBETWEEN(1,20)","v":8},null,null,null,null,null,"","",null,null,null,null,null,"",""]
[null,null,null,null,null,null,{"$f":"RANDBETWEEN(1,20)","v":1},{"$f":"RANDBETWEEN(1,20)","v":15},null,null,null,null,null,"","",null,null,null,null,null,"",""]
[null,null,null,null,null,null,{"$f":"RANDBETWEEN(1,20)","v":18},{"$f":"RANDBETWEEN(1,20)","v":14},null,null,null,null,null,"","",null,null,null,null,null,"",""]
[null,null,null,null,null,null,{"$f":"RANDBETWEEN(1,20)","v":14},{"$f":"RANDBETWEEN(1,20)","v":13},null,null,null,null,null,"","",null,null,null,null,null,"",""]
[null,null,null,null,null,null,{"$f":"RANDBETWEEN(1,20)","v":8},{"$f":"RANDBETWEEN(1,20)","v":13},null,null,null,null,null,"","",null,null,null,null,null,"",""]
[null,null,null,null,null,null,{"$f":"RANDBETWEEN(1,20)","v":3},{"$f":"RANDBETWEEN(1,20)","v":17},null,null,null,null,null,"","",null,null,null,null,null,"",""]
[null,null,null,null,null,null,{"$f":"RANDBETWEEN(1,20)","v":11},{"$f":"RANDBETWEEN(1,20)","v":1},null,null,null,null,null,"","",null,null,null,null,null,"",""]
[null,null,null,null,null,null,{"$f":"RANDBETWEEN(1,20)","v":1},{"$f":"RANDBETWEEN(1,20)","v":13},null,null,null,null,null,"","",null,null,null,null,null,"",""]